{"text_format":"1","workbook":"xlsx","n_sheets":11,"sheets":["Info","Master Dataset","Grant Analysis","Project Analysis","Satisfaction Analysis","Final Results","Temporal Analysis","Grant Performance","Satisfaction","Results to date","Control Variables"],"not_rendered":{"charts":4,"images":9,"macros":1,"external_links":0,"defined_names":66,"comments":0,"pivot_tables":0},"unopened":[],"bounds":{"document_bytes":16777216,"sheet_cells":100000,"rows_first":2000,"rows_last":500,"rows_between":2000,"halvings":0,"cell_chars":16384,"cell_head_chars":4096},"cells_cut":0,"cells_raw":0,"read":"whole","date_system":"1900"}

{"sheet":"Info","index":0,"n_rows":30,"n_cols":11,"rows_kept":30,"cut":false,"hidden":false,"merged":[[8,1,8,8],[3,2,3,11],[5,2,5,9]]}
[]
[null,"Funder Data Extraction tool"]
[]
[null,"About this tool","The data extraction tool is used to automatically collate the information from all the completed calculators. In addition, the extraction tool has a number of different analysis options to allow funders to interrogate the performance of all the providers they have contracted."]
[]
[null,null,"For further guidance on the operation of this tool, please consult the funder guidance document.",null,null,null,null,null,null,null,"http://data.london.gov.uk/dataset/lepr-esf-2014-20."]
[]
[null,"Master Dataset"]
[null,"Contains the extracted performance rating data. It also contains the control to extract the data from calculators."]
[]
[null,"Grant Analysis"]
[null,"Allow the user to summarise the performance of all contractors from a specific grant/grant."]
[]
[null,"Project Analysis"]
[null,"Allows the user to compare the performance of different contacts filtered by a range of criteria."]
[]
[null,"Satisfaction Analysis"]
[null,"Allows the analysis of the particpant satisfaction data for a funder overall or a specific grant."]
[]
[null,"Final Results"]
[null,"Produces the summary ratings table for publishing on the website."]
[]
[null,"Temporal Analysis"]
[null,"Review the performance of a contractors across time and calculate a lifetime/performance to date rating."]
[]
[null,"Grant_Performance"]
[null,"Contains the extract grant performance information need for the lifetime performance calculations"]
[]
[null,"Satisfaction"]
[null,"Contains the extracted participant satisfaction data to be used in Satisfaction analysis"]

{"sheet":"Master Dataset","index":1,"n_rows":8,"n_cols":55,"rows_kept":8,"cut":false,"hidden":false,"merged":[]}
["Info"]
[null,"Master Dataset"]
[null,"Contains the extracted performance rating data. It also contains the control to extract the data from calculators."]
[]
[]
[]
[]
[null,"Source File","Funder","Rating Year","Provider","Grant Name","Prime/Sub","Stars","Comments","Total %","Delivery ","Diversity","Conversion ","Self Assessment","Participant Satisfaction","Grant Compliance","Target Group","Primary Outcome","No. of starters ","Year of Delivery","Pan London","Barking & Dagenham","Barnet","Bexley","Brent","Bromley","Camden","City of London","Croydon","Ealing","Enfield","Greenwich","Hackney","Hammersmith & Fulham","Haringey","Harrow","Havering","Hillingdon","Hounslow","Islington","Kensington & Chelsea","Kingston","Lambeth","Lewisham","Merton","Newham","Redbridge","Richmond","Southwark","Sutton","Tower Hamlets","Waltham Forest","Wandsworth","Westminster","Funding Round and Spec"]

{"sheet":"Grant Analysis","index":2,"n_rows":28,"n_cols":10,"rows_kept":28,"cut":false,"hidden":false,"merged":[]}
["Info"]
[null,"Grant Analysis"]
[null,"Allow the user to summarise the performance of all contractors from a specific grant/grant."]
[]
[]
[]
[]
[]
[]
[]
[]
[]
[]
[]
[]
[]
[]
[]
[]
[]
[]
[]
[]
[]
[]
[null,"Provider","Stars","Total %","Delivery ","Diversity","Conversion ","Self Assessment","Participant Satisfaction","Grant Compliance"]
[null,"Provider 4",3,86.352297794117646,60,0,0,9,7.7522977941176467,9.6]
[null,"Maximum",4,100,60,0,12,9,9,10]

{"sheet":"Project Analysis","index":3,"n_rows":33,"n_cols":19,"rows_kept":33,"cut":false,"hidden":false,"merged":[[2,1,2,2]]}
["Info"]
[null,"Project Analysis"]
[null,"Allows the user to compare the performance of different contacts filtered by a range of criteria.",null,null,"Location Filters"]
[null,null,null,null,"All","Clear Selection"]
[null,"Funder","All",null,"Pan London"]
[null,"Prime/Sub","All",null,"Barking & Dagenham","City of London","Hammersmith & Fulham","Islington","Newham","Waltham Forest"]
[null,"Stars","All",null,"Barnet","Croydon","Haringey","Kensington & Chelsea","Redbridge","Wandsworth"]
[null,"Rating Year","2017/18",null,"Bexley","Ealing","Harrow","Kingston","Richmond","Westminster"]
[null,"Target Group","All",null,"Brent","Enfield","Havering","Lambeth","Southwark",null,null,null,null,null,null,null,"Pan London"]
[null,"Sort by:","Stars",null,"Bromley","Greenwich","Hillingdon","Lewisham","Sutton",null,null,null,null,null,null,null,"Barking & Dagenham","Hackney","Lewisham"]
[null,null,null,null,"Camden","Hackney","Hounslow","Merton","Tower Hamlets",null,null,null,null,null,null,null,"Barnet","Hammersmith & Fulham","Merton"]
[null,null,null,null,null,null,null,null,null,null,null,null,null,null,null,null,"Bexley","Haringey","Newham"]
[null,null,null,null,null,null,null,null,null,null,null,null,null,null,null,null,"Brent","Harrow","Redbridge"]
[null,null,null,null,null,null,null,null,null,null,null,null,null,null,null,null,"Bromley","Havering","Richmond"]
[null,null,null,null,null,null,null,null,null,null,null,null,null,null,null,null,"Camden","Hillingdon","Southwark"]
[null,null,null,null,null,null,null,null,null,null,null,null,null,null,null,null,"City of London","Hounslow","Sutton"]
[null,null,null,null,null,null,null,null,null,null,null,null,null,null,null,null,"Croydon","Islington","Tower Hamlets"]
[null,null,null,null,null,null,null,null,null,null,null,null,null,null,null,"None","Ealing","Kensington & Chelsea","Waltham Forest"]
[null,null,null,null,null,null,null,null,null,null,null,null,null,null,null,null,"Enfield","Kingston","Wandsworth"]
[null,null,null,null,null,null,null,null,null,null,null,null,null,null,null,null,"Greenwich","Lambeth","Westminster"]
[]
[]
[]
[]
[]
[]
[]
[]
[]
[]
[null,"Grant Name","Provider","Stars","Total %","Delivery ","Diversity","Conversion ","Self Assessment","Participant Satisfaction","Grant Compliance"]
[null,"disadvantaged young people","Provider 2",4,91.107411067193667,52.6,0,12,8.7954545454545467,8.7119565217391308,9]
[null,"Maximum",null,4,100,60,0,12,9,9,10]

{"sheet":"Satisfaction Analysis","index":4,"n_rows":23,"n_cols":11,"rows_kept":23,"cut":false,"hidden":false,"merged":[]}
["Info"]
[null,"Satisfaction Analysis"]
[null,"Allows the analysis of the participant satisfaction data for a funder overall or a specific grant."]
[null,"Funder","All"]
[null,"Rating Year","2018/19"]
[null,"Grant Name","Digital Skills"]
[null,null,null,null,"Very positive","Positive","Neutral","Negative","Very negative","Total","% of Maximum Score"]
[null,null,null,null,4,3,2,1,0]
[null,null,"Q1. What do you think of your advisor's/trainer's?"]
[null,null,"a) Knowledge of the subject/activity","1a",100,4,4,0,0,108,{"$f":"(E10*$E$8+F10*$F$8+G10*$G$8+H10)/(J10*4)","v":0.97222222222222221}]
[null,null,"b) Understanding of your needs","1b",90,10,8,0,0,108,{"$f":"(E11*$E$8+F11*$F$8+G11*$G$8+H11)/(J11*4)","v":0.93981481481481477}]
[null,null,"c) Support in setting targets to help you achieve your goals","1c",98,2,8,0,0,108,0.95833333333333337]
[null,null,"d)  Help with finding other support for you","1d",102,6,0,0,0,108,0.98611111111111116]
[null,null,"e) Support with helping you to plan your next steps  ","1e",101,7,0,0,0,108,0.98379629629629628]
[]
[null,null,"Q2. How has this activity made a difference to you?"]
[null,null,"a) Knowledge of the subject/activity","2a",96,4,8,0,0,108,0.95370370370370372]
[null,null,"b) Understanding of your needs","2b",84,16,8,0,0,108,0.92592592592592593]
[null,null,"c) Support in setting targets to help you achieve your goals","2c",51,51,6,0,0,108,0.85416666666666663]
[null,null,"d)  Help with finding other support for you","2d",108,0,0,0,0,108,1]
[null,null,"e) Support with helping you to plan your next steps","2e",47,33,28,0,0,108,0.79398148148148151]
[]
[null,null,"Q3.  Overall, how satisfied or dissatisfied were you with the activity?",3,100,2,6,0,0,111,0.94144144144144148]

{"sheet":"Final Results","index":5,"n_rows":16,"n_cols":6,"rows_kept":16,"cut":false,"hidden":false,"merged":[[7,1,7,5],[12,1,12,5]]}
["Info"]
[null,"Final Results"]
[null,"Produces the summary ratings table for publishing on the website."]
[]
[null,"Funder","All"]
[null,"Rating Year","2019/20"]
[]
[null,"All Grants (lead grant holders) : 2019/20 Employability Performance Rating"]
[null,null,null,null,null,"No stars awarded"]
[]
[]
[]
[null,"All Grants (sub grant holders) : 2019/20 Employability Performance Rating"]
[null,null,null,null,null,"No stars awarded"]
[null,null,"Provider 4 (Housing Academy)"]
[null,null,1]

{"sheet":"Temporal Analysis","index":6,"n_rows":28,"n_cols":10,"rows_kept":28,"cut":false,"hidden":false,"merged":[]}
["Info"]
[null,"Temporal Analysis"]
[null,"Review the performance of a contractors across time and calculate a lifetime/performance to date rating."]
[]
[]
[null,"Provider","Provider 4"]
[null,"Grant Name","Housing Academy"]
[]
[]
[]
[]
[]
[]
[]
[]
[]
[]
[]
[]
[]
[]
[]
[]
[]
[null,"Rating Year","Stars","Total %","Delivery ","Diversity","Conversion ","Self Assessment","Participant Satisfaction","Grant Compliance"]
[null,"2019/20",3,86.352297794117646,60,0,0,9,7.7522977941176467,9.6]
[null,"Performance to date",3,86.352297794117646,60,0,0,9,7.7522977941176467,9.6]
[null,"Maximum",4,100,60,0,12,9,9,10]

{"sheet":"Grant Performance","index":7,"n_rows":5,"n_cols":93,"rows_kept":5,"cut":false,"hidden":false,"merged":[]}
["Info"]
[null,"Grant performance"]
[null,"Contains the extract grant performance information need for the lifetime performance calculations"]
[]
[null,"Source File","Funder","Rating Year","Provider","Grant Name","Prime/Sub","Number of Targets","Diversity Targets?","Outcome_1_Type","Outcome_1_Profile","Outcome_1_BAME","Outcome_1_Disability","Outcome_1_Women","Outcome_2_Type","Outcome_2_Profile","Outcome_2_BAME","Outcome_2_Disability","Outcome_2_Women","Outcome_3_Type","Outcome_3_Profile","Outcome_3_BAME","Outcome_3_Disability","Outcome_3_Women","Outcome_4_Type","Outcome_4_Profile","Outcome_4_BAME","Outcome_4_Disability","Outcome_4_Women","Outcome_5_Type","Outcome_5_Profile","Outcome_5_BAME","Outcome_5_Disability","Outcome_5_Women","Outcome_6_Type","Outcome_6_Profile","Outcome_6_BAME","Outcome_6_Disability","Outcome_6_Women","Target_1_Profile","Target_1_BAME","Target_1_Disability","Target_1_Women","Target_2_Profile","Target_2_BAME","Target_2_Disability","Target_2_Women","Target_3_Profile","Target_3_BAME","Target_3_Disability","Target_3_Women","Target_4_Profile","Target_4_BAME","Target_4_Disability","Target_4_Women","Target_5_Profile","Target_5_BAME","Target_5_Disability","Target_5_Women","Target_6_Profile","Target_6_BAME","Target_6_Disability","Target_6_Women","Life_Target_1_Type","Life_Target_1_Profile","Life_Target_1_BAME","Life_Target_1_Disability","Life_Target_1_Women","Life_Target_2_Type","Life_Target_2_Profile","Life_Target_2_BAME","Life_Target_2_Disability","Life_Target_2_Women","Life_Target_3_Type","Life_Target_3_Profile","Life_Target_3_BAME","Life_Target_3_Disability","Life_Target_3_Women","Life_Target_4_Type","Life_Target_4_Profile","Life_Target_4_BAME","Life_Target_4_Disability","Life_Target_4_Women","Life_Target_5_Type","Life_Target_5_Profile","Life_Target_5_BAME","Life_Target_5_Disability","Life_Target_5_Women","Life_Target_6_Type","Life_Target_6_Profile","Life_Target_6_BAME","Life_Target_6_Disability","Life_Target_6_Women"]

{"sheet":"Satisfaction","index":8,"n_rows":5,"n_cols":67,"rows_kept":5,"cut":false,"hidden":false,"merged":[]}
["Info"]
[null,"Satisfaction Data"]
[null,"Contains the extracted participant satisfaction data to be used in Satisfaction analysis"]
[]
[null,"Source File","Funder","Rating Year","Provider","Grant Name","Prime/Sub","1a_4","1b_4","1c_4","1d_4","1e_4","2a_4","2b_4","2c_4","2d_4","2e_4","2f_4","3_4","1a_3","1b_3","1c_3","1d_3","1e_3","2a_3","2b_3","2c_3","2d_3","2e_3","2f_3","3_3","1a_2","1b_2","1c_2","1d_2","1e_2","2a_2","2b_2","2c_2","2d_2","2e_2","2f_2","3_2","1a_1","1b_1","1c_1","1d_1","1e_1","2a_1","2b_1","2c_1","2d_1","2e_1","2f_1","3_1","1a_0","1b_0","1c_0","1d_0","1e_0","2a_0","2b_0","2c_0","2d_0","2e_0","2f_0","3_0"]

{"sheet":"Results to date","index":9,"n_rows":47,"n_cols":44,"rows_kept":47,"cut":false,"hidden":false,"merged":[[14,29,15,33],[14,34,15,38],[14,39,15,43],[4,16,4,19],[10,16,10,19],[11,15,11,19],[12,15,12,19],[14,17,15,21],[14,12,15,16],[4,9,4,13],[5,15,6,15],[5,16,5,19],[6,16,6,19],[7,15,9,15],[7,16,7,19],[8,16,8,19],[9,16,9,19],[14,24,15,28],[4,2,4,5],[5,1,6,1],[5,2,5,5],[6,2,6,5],[7,1,9,1],[7,2,7,5],[8,2,8,5],[14,2,15,6],[9,2,9,5],[10,2,10,5],[11,1,11,5],[14,7,15,11],[12,1,12,5]]}
[]
[null,"Grant Name",{"$f":"'Temporal Analysis'!C7","v":"Housing Academy"}]
[null,"Provider",{"$f":"'Temporal Analysis'!C6","v":"Provider 4"}]
[]
[null,"KPA","Indicator",null,null,null,"Star rating points","Total available",null,"Star rating guidance",null,null,null,null,null,"KPA","Indicator",null,null,null,"Star rating points","Total available"]
[null,"Grant performance","Delivery against grant targets",null,null,null,{"$f":"SUM(INDEX(LifePerformTable,0,6))","v":60},{"$f":"SUM(INDEX(LifePerformTable,0,5))","v":60},null,"4 stars",87.5,"-",100,"points",null,"Grant performance","Delivery against grant targets",null,null,null,{"$f":"SUM(INDEX(LifetimePerformTable,0,6))","v":25.7},{"$f":"SUM(INDEX(LifePerformTable,0,5))","v":60}]
[null,null,"Delivery against grant diversity targets",null,null,null,{"$f":"SUM(INDEX(LifeBAMETable,0,5),INDEX(LifeDisabilityTable,0,5),INDEX(LifeWomenTable,0,5))","v":0},{"$f":"SUM(INDEX(LifeBAMETable,0,4),INDEX(LifeDisabilityTable,0,4),INDEX(LifeWomenTable,0,4))","v":0},null,"3 stars",75,"-",87.4,"points",null,null,"Delivery against grant diversity targets",null,null,null,{"$f":"SUM(INDEX(LifetimeBAMETable,0,5),INDEX(LifetimeDisabilityTable,0,5),INDEX(LifetimeWomenTable,0,5))","v":3.9595959595959593},{"$f":"SUM(INDEX(LifeBAMETable,0,4),INDEX(LifeDisabilityTable,0,4),INDEX(LifeWomenTable,0,4))","v":0}]
[null,"Quality","Conversion rate for positive outcomes",null,null,null,{"$f":"J26","v":0},12,null,"2 stars",62.5,"-",74.900000000000006,"points",null,"Quality","Conversion rate for positive outcomes",null,null,null,{"$f":"AF26","v":0},12]
[null,null,"Self assessment of quality",null,null,null,{"$f":"QSAFScore","v":9},9,null,"1 star",40,"-",62.4,"points",null,null,"Self assessment of quality",null,null,null,{"$f":"QSAFScore","v":9},9]
[null,null,"Customer satisfaction",null,null,null,{"$f":"IFERROR(E35/(D35*4)*H10,0)","v":7.7522977941176467},9,null,"0 star",0,"-",39.9,"points",null,null,"Customer satisfaction",null,null,null,{"$f":"IFERROR(S35/(R35*4)*V10,0)","v":0},9]
[null,"Grant compliance","Grant compliance",null,null,null,{"$f":"ComplianceScore","v":9.6},10,null,null,null,null,null,null,null,"Grant compliance","Grant compliance",null,null,null,{"$f":"ComplianceScore","v":9.6},10]
[null,"Total Star Rating points",null,null,null,null,{"$f":"SUM(G6:G11)","v":86.352297794117646},100,null,null,null,null,null,null,null,"Total Star Rating points",null,null,null,null,{"$f":"SUM(U6:U11)","v":48.259595959595963},100]
[null,"Stars",null,null,null,null,3,4,null,null,null,null,null,null,null,"Stars",null,null,null,null,2,4]
[null,"Grant Performance (Sum of annual targets)",null,null,null,null,null,null,null,null,null,null,null,null,null,null,null,null,null,null,null,null,null," Grant Performance (Lifetime Targets)"]
[null,null,"Delivery against grant targets",null,null,null,null,"BAME",null,null,null,null,"Disability",null,null,null,null,"Women",null,null,null,null,null,null,"Delivery against grant targets",null,null,null,null,"BAME",null,null,null,null,"Disability",null,null,null,null,"Women"]
[]
[null,"Target","Life Target","Life Outcome","% Delivery ","Total pts available","Star rating points","Life Target","Life Outcome","% Delivery ","Total pts available","Star rating points","Life Target","Life Outcome","% Delivery ","Total pts available","Star rating points","Life Target","Life Outcome","% Delivery ","Total pts available","Star rating points",null,"Target","Life Target","Life Outcome","% Delivery ","Total pts available","Star rating points","Life Target","Life Outcome","% Delivery ","Total pts available","Star rating points","Life Target","Life Outcome","% Delivery ","Total pts available","Star rating points","Life Target","Life Outcome","% Delivery ","Total pts available","Star rating points"]
[null,"Entry to employment ",130,136,1.0461538461538462,30,30,null,null,null,null,null,null,null,null,null,null,null,null,null,null,null,null,"Entry to employment",200,108,0.54,24,12.96,50,24,0.44444444444444442,1.3333333333333333,0.59259259259259256,50,24,0.44444444444444442,1.3333333333333333,0.59259259259259256,100,48,0.44444444444444442,1.3333333333333333,0.59259259259259256]
[null,"Starts",100,106,1.06,30,30,null,null,null,null,null,null,null,null,null,null,null,null,null,null,null,null,"Starts",150,88,0.58666666666666667,12,7.04,50,18,0.40909090909090912,1.3333333333333333,0.54545454545454541,50,18,0.40909090909090912,1.3333333333333333,0.54545454545454541,50,36,0.81818181818181823,1.3333333333333333,1.0909090909090908]
[null,null,null,null,null,null,null,null,null,null,null,null,null,null,null,null,null,null,null,null,null,null,null,"26 weeks",200,95,0.47499999999999998,12,5.6999999999999993,null,20,0,1.3333333333333333,0,null,21,0,1.3333333333333333,0,null,32,0,1.3333333333333333,0]
[]
[]
[]
[null,"Conversion (Sum of annual targets)",null,null,null,null,null,null,null,null,null,null,null,null,null,null,null,null,null,null,null,null,null,"Conversion (Lifetime Targets)"]
[null,"Primary Outcome","Target number of starts","Actual number of starts","Target Outcomes","Actual Outcomes","Target conversion rate","Actual conversion rate","Actual  rate minus target rate","Total Star Rating points",null,null,null,null,null,null,null,null,null,null,null,null,null,"Primary Outcome","Target number of starts","Actual number of starts","Target Outcomes","Actual Outcomes","Target conversion rate","Actual conversion rate","Actual  rate minus target rate","Total Star Rating points"]
[null,"Entry into employment",{"$f":"VLOOKUP(\"Starts\",LifePerformTable,2,FALSE)","v":100},{"$f":"VLOOKUP(\"Starts\",LifePerformTable,3,FALSE)","v":106},{"$f":"VLOOKUP(INDEX(LifePerformTable,2,1),LifePerformTable,2,FALSE)","v":130},{"$f":"VLOOKUP(INDEX(LifePerformTable,2,1),LifePerformTable,3,FALSE)","v":136},{"$f":"IF(C26<>0,E26/C26,0)","v":1.3},{"$f":"IF(D26<>0,F26/D26,0)","v":1.2830188679245282},{"$f":"H26-G26","v":-1.6981132075471805E-2},{"$f":"IF(I26>0,IF(I26<0.15,I26*100/1.25,H8),0)","v":0},null,null,null,null,null,null,null,null,null,null,null,null,null,"Entry into employment",{"$f":"VLOOKUP(\"Starts\",LifetimePerformTable,2,FALSE)","v":150},{"$f":"VLOOKUP(\"Starts\",LifetimePerformTable,3,FALSE)","v":88},{"$f":"VLOOKUP(INDEX(LifetimePerformTable,2,1),LifetimePerformTable,2,FALSE)","v":200},{"$f":"VLOOKUP(INDEX(LifetimePerformTable,2,1),LifetimePerformTable,3,FALSE)","v":108},{"$f":"IF(Y26<>0,AA26/Y26,0)","v":1.3333333333333333},{"$f":"IF(Z26<>0,AB26/Z26,0)","v":1.2272727272727273},{"$f":"AD26-AC26","v":-0.10606060606060597},{"$f":"IF(AE26>0,IF(AE26<0.15,AE26*100/1.25,AD8),0)","v":0}]
[]
[null,"Client Satisfaction"]
[null,"Responses","Points per response","No of responses","Points Scored"]
[null,"Very positive",4,1068,{"$f":"D30*C30","v":4272}]
[null,"Positive",3,303,{"$f":"D31*C31","v":909}]
[null,"Neutral ",2,195,390]
[null,"Negative",1,52,52]
[null,"Very negative",0,14,0]
[null,"Total",null,{"$f":"SUM(D30:D34)","v":1632},{"$f":"IF(F26<D35,SUM(E30:E34),0)","v":5623}]
[]
[]
[null,"Self Assessment"]
[null,"Year","Score"]
[null,"2019/20",9]
[null,"Average",9]
[]
[]
[null,"Grant Compliance"]
[null,"Year","Score"]
[null,"2019/20",9.6]
[null,"Average",9.6]

{"sheet":"Control Variables","index":10,"n_rows":37,"n_cols":14,"rows_kept":37,"cut":false,"hidden":false,"merged":[]}
[]
[null,"YearRange",null,"NormalMaximum","NoDiversityMaximum","GrantNames","FunderNames","ProviderNames","TargetGroupNames","Locations","DiversityType","ProviderNames2","ProviderSpecificNames","GrantNamesALL"]
[null,"2015/16",null,4,4,"16-24 to employment ","All","All","All","All","BAME","Provider 1","Housing Academy","All"]
[null,"2016/17",null,100,100,"Digital Skills","Big Lottery","Provider 1","16-24 year group ","Pan London","Disability","Provider 2",null,"16-24 to employment "]
[null,"2017/18",null,48,60,"disadvantaged young people","GLA","Provider 2","disadvantaged young people","Barking & Dagenham","Women","Provider 3",null,"Digital Skills"]
[null,"2018/19",null,12,0,"Housing Academy",null,"Provider 3","Secondary school pupils","Barnet",null,"Provider 4",null,"disadvantaged young people"]
[null,"2019/20",null,12,12,null,null,"Provider 4",null,"Bexley",null,null,null,"Housing Academy"]
[null,"2020/21",null,9,9,null,null,null,null,"Brent"]
[null,null,null,9,9,null,null,null,null,"Bromley"]
[null,null,null,10,10,null,null,null,null,"Camden"]
[null,null,null,null,null,null,null,null,null,"City of London"]
[null,null,null,null,null,null,null,null,null,"Croydon"]
[null,null,null,null,null,null,null,null,null,"Ealing"]
[null,null,null,null,null,null,null,null,null,"Enfield"]
[null,null,null,null,null,null,null,null,null,"Greenwich"]
[null,null,null,null,null,null,null,null,null,"Hackney"]
[null,null,null,null,null,null,null,null,null,"Hammersmith & Fulham"]
[null,null,null,null,null,null,null,null,null,"Haringey"]
[null,null,null,null,null,null,null,null,null,"Harrow"]
[null,null,null,null,null,null,null,null,null,"Havering"]
[null,null,null,null,null,null,null,null,null,"Hillingdon"]
[null,null,null,null,null,null,null,null,null,"Hounslow"]
[null,null,null,null,null,null,null,null,null,"Islington"]
[null,null,null,null,null,null,null,null,null,"Kensington & Chelsea"]
[null,null,null,null,null,null,null,null,null,"Kingston"]
[null,null,null,null,null,null,null,null,null,"Lambeth"]
[null,null,null,null,null,null,null,null,null,"Lewisham"]
[null,null,null,null,null,null,null,null,null,"Merton"]
[null,null,null,null,null,null,null,null,null,"Newham"]
[null,null,null,null,null,null,null,null,null,"Redbridge"]
[null,null,null,null,null,null,null,null,null,"Richmond"]
[null,null,null,null,null,null,null,null,null,"Southwark"]
[null,null,null,null,null,null,null,null,null,"Sutton"]
[null,null,null,null,null,null,null,null,null,"Tower Hamlets"]
[null,null,null,null,null,null,null,null,null,"Waltham Forest"]
[null,null,null,null,null,null,null,null,null,"Wandsworth"]
[null,null,null,null,null,null,null,null,null,"Westminster"]